bitfinex/quotes_BTCUSD_20250917
["timestamp","ask_amount","ask_price","bid_price","bid_amount"]
[1758081714509,0.53112162,116550.0,116540.0,0.21033452]
[1758081722289,0.84179699,116550.0,116540.0,0.01513963]
[1758081722568,0.53311162,116550.0,116540.0,0.01192963]
[1758081722782,0.55722162,116550.0,116540.0,0.01192963]
[1758081723006,0.53311162,116550.0,116540.0,0.01201963]
[1758081723211,0.53311162,116550.0,116540.0,0.03534963]
[1758081724325,0.53311162,116550.0,116540.0,0.03846963]
[1758081725008,0.53311162,116550.0,116540.0,0.03534963]
[1758081725672,0.53311162,116550.0,116540.0,0.00114701]
[1758081725899,0.86086527,116550.0,116540.0,0.00114701]
[1758081726152,0.88497527,116550.0,116540.0,0.00114701]
[1758081727075,0.95546844,116550.0,116540.0,0.00114701]
[1758081727287,0.89097642,116550.0,116540.0,0.00114701]
[1758081729996,0.92112832,116550.0,116540.0,0.00114701]
[1758081730422,0.94691207,116550.0,116540.0,0.00114701]
[1758081732145,0.67799207,116550.0,116540.0,0.00114701]
[1758081732352,0.94687207,116550.0,116540.0,0.00114701]
[1758081732597,0.65598264,116550.0,116540.0,0.00114701]
[1758081732818,0.94685664,116550.0,116540.0,0.00114701]
[1758081741084,0.63817127,116550.0,116540.0,0.00114701]
[1758081741301,1.28685664,116550.0,116540.0,0.00104701]
[1758081741533,1.37335809,116550.0,116540.0,0.00104701]
[1758081741744,1.38206054,116550.0,116540.0,0.00104701]
[1758081745854,1.76822083,116550.0,116540.0,0.00104701]
[1758081746930,1.49934083,116550.0,116540.0,0.00104701]
[1758081747138,1.76822083,116550.0,116540.0,0.00104701]
[1758081748952,1.49934083,116550.0,116540.0,0.00104701]
[1758081749201,1.76822083,116550.0,116540.0,0.00104701]
[1758081750326,1.7682158,116550.0,116540.0,0.00104701]
[1758081750752,1.4993358,116550.0,116540.0,0.00104701]
[1758081750954,1.7682158,116550.0,116540.0,0.00104701]
[1758081753717,1.4993358,116550.0,116540.0,0.00104701]
[1758081753920,1.7682158,116550.0,116540.0,0.00104701]
[1758081754112,1.4993358,116550.0,116540.0,0.00104701]
[1758081754314,1.7682158,116550.0,116540.0,0.00104701]
[1758081754719,1.76221744,116550.0,116540.0,0.00104701]
[1758081754847,1.76820377,116550.0,116540.0,0.00104701]
[1758081755043,1.49932377,116550.0,116540.0,0.00104701]
[1758081755251,1.76820377,116550.0,116540.0,0.00104701]
[1758081756467,1.84820377,116550.0,116540.0,0.00104701]
[1758081756698,1.57932377,116550.0,116540.0,0.00104701]
[1758081756928,1.84820377,116550.0,116540.0,0.00104701]
[1758081757342,1.87453468,116550.0,116540.0,0.00104701]
[1758081757764,1.60565468,116550.0,116540.0,0.00104701]
[1758081757972,1.87453468,116550.0,116540.0,0.00104701]
[1758081761634,2.20437468,116550.0,116540.0,0.00104701]
[1758081761835,2.2043768,116550.0,116540.0,0.00104701]
[1758081762392,2.2043776,116550.0,116540.0,0.00104701]
[1758081766187,2.18242082,116550.0,116540.0,0.00104701]
[1758081767079,2.20438647,116550.0,116540.0,0.00104701]
[1758081767257,2.18841145,116550.0,116540.0,0.00104701]
[1758081767475,1.49354271,116550.0,116540.0,0.00104701]
[1758081767672,2.18841145,116550.0,116540.0,0.00104701]
[1758081767878,1.91354082,116550.0,116540.0,0.00104701]
[1758081768135,2.20439354,116550.0,116540.0,0.00104701]
[1758081768256,2.20439471,116550.0,116540.0,0.00104701]
[1758081769286,2.20439619,116550.0,116540.0,0.00104701]
[1758081775798,2.20440302,116550.0,116540.0,0.00104701]
[1758081776050,2.20442831,116550.0,116540.0,0.00104701]
[1758081776300,1.56283957,116550.0,116540.0,0.00303701]
[1758081776513,2.2560074,116550.0,116540.0,0.00104701]
[1758081778983,2.25600944,116550.0,116540.0,0.00104701]
[1758081780400,2.2560183,116550.0,116540.0,0.00104701]
[1758081781009,2.2334083,116550.0,116540.0,0.00104701]
[1758081781414,2.2575183,116550.0,116540.0,0.00104701]
[1758081782210,2.2605983,116550.0,116540.0,0.00104701]
[1758081782986,2.2575183,116550.0,116540.0,0.00104701]
[1758081783221,2.2575183,116550.0,116540.0,0.00313701]
[1758081783390,2.2334083,116550.0,116540.0,0.00313701]
[1758081783596,2.2334083,116550.0,116540.0,0.02911701]
[1758081783862,2.2334083,116550.0,116540.0,0.02603701]
[1758081784206,2.2334083,116550.0,116540.0,0.00313701]
[1758081784416,2.2575183,116550.0,116540.0,0.00104701]
[1758081785397,2.2605983,116550.0,116540.0,0.00104701]
[1758081785859,2.28468451,116550.0,116540.0,0.00104701]
[1758081788709,2.27868043,116550.0,116540.0,0.00104701]
[1758081788918,2.28468595,116550.0,116540.0,0.00104701]
[1758081792179,2.28160595,116550.0,116540.0,0.00104701]
[1758081792391,2.25547595,116550.0,116540.0,0.02911701]
[1758081793016,2.23134974,116550.0,116540.0,0.02911701]
[1758081794812,2.23341974,116550.0,116540.0,0.02394701]
[1758081795015,2.23341974,116550.0,116540.0,0.00104701]
[1758081795216,2.23341974,116550.0,116540.0,0.00313701]
[1758081795401,2.23341974,116550.0,116540.0,0.02603701]
[1758081796029,2.23341974,116550.0,116540.0,0.00313701]
[1758081796232,2.23341974,116550.0,116540.0,0.00104701]
[1758081796233,2.25752974,116550.0,116540.0,0.00104701]
[1758081796840,2.2575284,116550.0,116540.0,0.00104701]
[1758081797258,1.53854966,116550.0,116540.0,0.02603701]
[1758081797465,2.2334184,116550.0,116540.0,0.02911701]
[1758081798530,2.2313484,116550.0,116540.0,0.02911701]
[1758081799499,2.22264595,116550.0,116540.0,0.02911701]
[1758081804151,1.87521158,116550.0,116540.0,0.02911701]
[1758081805565,2.22264595,116550.0,116540.0,0.02911701]
[1758081807987,1.83655031,116550.0,116540.0,0.02911701]
[1758081808407,1.83654545,116550.0,116540.0,0.02911701]
[1758081809790,1.52777235,116550.0,116540.0,0.02911701]
[1758081809975,0.8324309,116550.0,116540.0,0.02911701]
[1758081810191,1.410004,116550.0,116540.0,0.02911701]
[1758081811345,1.1012309,116550.0,116540.0,0.02911701]
[1758081811604,0.8324309,116550.0,116540.0,0.02911701]
[1758081811869,1.1012309,116550.0,116540.0,0.02911701]
[1758081814734,1.1012309,116550.0,116540.0,0.03761522]
[1758081816099,1.08521793,116550.0,116540.0,0.03761522]
[1758081816271,1.10116942,116550.0,116540.0,0.03761522]
[1758081819129,0.83240942,116550.0,116540.0,0.03761522]
[1758081819358,1.10116942,116550.0,116540.0,0.03761522]
[1758081819887,1.10116942,116550.0,116540.0,0.03771522]
[1758081820926,1.07097752,116550.0,116540.0,0.03771522]
[1758081821917,1.07097752,116550.0,116540.0,0.20933011]
[1758081822411,1.07097613,116550.0,116540.0,0.20933011]
[1758081823938,1.05498603,116550.0,116540.0,0.20933011]
[1758081824288,1.04898537,116550.0,116540.0,0.20933011]
[1758081824984,0.71914537,116550.0,116540.0,0.20933011]
[1758081828748,0.71910537,116550.0,116540.0,0.20933011]
[1758081828919,0.69332162,116550.0,116540.0,0.20933011]
[1758081829285,0.69332162,116550.0,116540.0,0.03771522]
[1758081829516,0.69332162,116550.0,116540.0,0.03850029]
[1758081830144,0.69332162,116550.0,116540.0,0.21011518]
[1758081830359,0.69332162,116550.0,116540.0,0.20933011]
[1758081831956,0.69332162,116550.0,116540.0,0.03771522]
[1758081835869,0.69332162,116550.0,116540.0,0.03850029]
[1758081836516,0.25304145,116550.0,116540.0,0.21011518]
[1758081836728,0.42464162,116550.0,116540.0,0.20933011]
[1758081836945,0.69328162,116550.0,116540.0,0.20933011]
[1758081838337,0.71528508,116550.0,116540.0,0.20933011]
[1758081839271,0.71528508,116550.0,116540.0,0.03771522]
[1758081839453,0.71528508,116550.0,116540.0,0.03850029]
[1758081840291,0.54368491,116550.0,116540.0,0.21011518]
[1758081840506,0.54368491,116550.0,116540.0,0.20933011]
[1758081840711,0.27504491,116550.0,116540.0,0.20933011]
[1758081841131,0.54368491,116550.0,116540.0,0.20933011]
[1758081841366,0.25904239,116550.0,116540.0,0.51810321]
[1758081841549,0.52168145,116550.0,116540.0,0.58966461]
[1758081841763,0.52168145,116550.0,116540.0,0.51810321]
[1758081842184,0.51768145,116550.0,116540.0,0.51710321]
[1758081842582,0.51968145,116550.0,116540.0,0.51910321]
[1758081843773,0.51968145,116550.0,116540.0,0.21033011]
[1758081843991,0.51968145,116550.0,116540.0,0.51910321]
[1758081845761,0.43968145,116550.0,116540.0,0.51910321]
[1758081845962,0.43968145,116550.0,116540.0,0.59076461]
[1758081846600,0.43968145,116550.0,116540.0,0.51910321]
[1758081850396,0.43968145,116550.0,116540.0,0.21033011]
[1758081853824,0.17104145,116550.0,116540.0,0.21033011]
[1758081854118,0.17104145,116550.0,116540.0,0.51910321]
[1758081854119,0.43964145,116550.0,116540.0,0.51910321]
[1758081859313,0.43964145,116550.0,116540.0,0.21033011]
[1758081859530,0.43964145,116550.0,116540.0,0.51910321]
[1758081859745,0.43964145,116550.0,116540.0,0.59076461]
[1758081860337,0.43964145,116550.0,116540.0,0.51910321]
[1758081860966,0.43964145,116550.0,116540.0,0.21033011]
[1758081866382,0.43964145,116550.0,116540.0,0.51910321]
[1758081867305,0.43964145,116550.0,116540.0,0.21033011]
[1758081867489,0.43964145,116550.0,116540.0,0.51910321]
[1758081869887,0.43964145,116550.0,116540.0,0.55753713]
[1758081871440,0.17104145,116550.0,116540.0,0.55753713]
[1758081871646,0.35716145,116550.0,116540.0,0.55753713]
[1758081871884,0.08860145,116550.0,116540.0,0.55753713]
[1758081872330,0.35716145,116550.0,116540.0,0.55753713]
[1758081872524,0.35716145,116550.0,116540.0,0.63304192]
[1758081872673,0.08860145,116550.0,116540.0,0.63304192]
[1758081872897,0.35716145,116550.0,116540.0,0.65882175]
[1758081873582,0.08860145,116550.0,116540.0,0.65882175]
[1758081873710,0.35716145,116550.0,116540.0,0.92738175]
[1758081873928,0.08860145,116550.0,116540.0,0.92738175]
[1758081874127,0.08850145,116550.0,116540.0,0.92738175]
[1758081877296,0.08850145,116550.0,116540.0,0.65882175]
[1758081877528,0.08850145,116550.0,116540.0,0.92738175]
[1758081878723,0.08850145,116550.0,116540.0,0.65882175]
[1758081878916,0.08850145,116550.0,116540.0,0.92738175]
[1758081881910,0.002,116550.0,116540.0,1.00602877]
[1758081882131,0.002,116550.0,116540.0,1.27458877]
[1758081882758,0.002,116550.0,116540.0,0.92738175]
[1758081883380,0.002,116550.0,116540.0,0.99142821]
[1758081885688,0.002,116550.0,116540.0,1.33863523]
[1758081885911,0.002,116550.0,116540.0,1.33859523]
[1758081886115,0.002,116550.0,116540.0,0.72286821]
[1758081886323,0.002,116550.0,116540.0,0.99138821]
[1758081889531,0.002,116550.0,116540.0,0.64418119]
[1758081889739,0.002,116550.0,116540.0,0.99138821]
[1758081889939,0.002,116550.0,116540.0,0.72286821]
[1758081890135,0.002,116550.0,116540.0,0.37566119]
[1758081890303,0.002,116550.0,116540.0,0.99138821]
[1758081893212,0.002,116550.0,116540.0,0.99157821]
[1758081894234,0.002,116550.0,116540.0,0.72305821]
[1758081894432,0.002,116550.0,116540.0,0.99157821]
[1758081894629,0.002,116550.0,116540.0,0.72305821]
[1758081894798,0.002,116550.0,116540.0,0.99157821]
[1758081896418,0.002,116550.0,116540.0,0.72305821]
[1758081896623,0.002,116550.0,116540.0,0.99259821]
[1758081925183,0.002,116550.0,116540.0,0.64539119]
[1758081925445,0.002,116550.0,116540.0,0.99259821]
[1758081926823,0.00190242,116550.0,116540.0,0.99259821]
[1758081931794,0.00190242,116550.0,116540.0,0.9539313]
[1758081932405,0.00190242,116550.0,116540.0,0.64539119]
[1758081933520,0.00190242,116550.0,116540.0,0.37687119]
[1758081933676,0.00190242,116550.0,116540.0,0.64527119]
[1758081933882,0.00186241,116550.0,116540.0,0.64527119]
[1758081935716,0.00186241,116550.0,116540.0,0.64527119]
[1758081936360,0.08186241,116550.0,116540.0,0.64527119]
[1758081942340,0.08186241,116550.0,116540.0,0.9538113]
[1758081942596,0.08186241,116550.0,116540.0,1.2938113]
[1758081943223,0.00186241,116550.0,116540.0,1.2938113]
[1758081943441,0.001,116550.0,116540.0,1.2938113]
[1758081944063,0.0001,116570.0,116560.0,0.17158544]
[1758081944271,0.08660145,116570.0,116560.0,0.78362056]
[1758081944472,0.08650145,116570.0,116560.0,0.78488285]
[1758081944673,0.08650145,116570.0,116560.0,0.81100285]
[1758081944993,0.08650145,116570.0,116560.0,0.83677701]
[1758081945594,0.08850145,116570.0,116560.0,0.83777701]
[1758081945806,0.08850145,116570.0,116560.0,0.83787701]
[1758081946444,0.16850145,116570.0,116560.0,0.83787701]
[1758081946624,0.16950145,116570.0,116560.0,0.83787701]
[1758081948369,0.16950145,116570.0,116560.0,0.5293369]
[1758081948527,0.16950145,116570.0,116560.0,0.83787701]
[1758081950273,0.16950145,116570.0,116560.0,0.5293369]
[1758081950449,0.16950145,116570.0,116560.0,0.83787701]
[1758081950844,0.16950145,116570.0,116560.0,0.83783701]
[1758081952941,0.003,116570.0,116560.0,0.83783701]
[1758081956350,0.002,116570.0,116560.0,0.83783701]
[1758081956570,0.003,116570.0,116560.0,0.83783701]
[1758081957330,0.001,116570.0,116560.0,0.83683701]
[1758081957532,0.001,116570.0,116560.0,0.56947701]
[1758081957937,0.001,116570.0,116560.0,0.83683701]
[1758081958141,0.02154266,116590.0,116580.0,0.17155601]
[1758081958312,0.10804411,116590.0,116580.0,0.17155601]
[1758081958537,0.11015411,116590.0,116580.0,0.19717601]
[1758081958667,0.11015411,116590.0,116580.0,0.19727601]
[1758081958874,0.11015411,116590.0,116580.0,0.17165601]
[1758081959284,0.11015411,116590.0,116580.0,0.23339729]
[1758081959495,0.11115411,116590.0,116580.0,0.23339729]
[1758081960216,0.3096754,116590.0,116580.0,0.17165601]
[1758081960451,0.29223274,116590.0,116580.0,0.17265601]
[1758081964242,0.11769145,116590.0,116580.0,0.17265601]
[1758081964496,0.13913411,116590.0,116580.0,0.17265601]
[1758081968836,0.13913411,116590.0,116580.0,0.17461601]
[1758081969059,0.44767422,116590.0,116580.0,0.17265601]
[1758081969303,0.42623156,116590.0,116580.0,0.17265601]
[1758081969691,0.42923156,116590.0,116580.0,0.17265601]
[1758081970475,0.42623156,116590.0,116580.0,0.17265601]
[1758081971368,0.42923156,116590.0,116580.0,0.17265601]
[1758081972405,0.42623156,116590.0,116580.0,0.17265601]
[1758081973459,0.42923156,116590.0,116580.0,0.17265601]
[1758081973753,0.42623156,116590.0,116580.0,0.17265601]
[1758081976673,0.42923156,116590.0,116580.0,0.17265601]
[1758081976949,0.42623156,116590.0,116580.0,0.17265601]
[1758081978882,0.59777285,116590.0,116580.0,0.17265601]
[1758081979603,0.60379008,116590.0,116580.0,0.17265601]
[1758081980033,0.60379008,116590.0,116580.0,0.21233559]
[1758081980174,0.29524997,116590.0,116580.0,0.21233559]
[1758081980389,0.60379008,116590.0,116580.0,0.21233559]
[1758081980588,0.60379008,116590.0,116580.0,0.17265601]
[1758081984288,0.70352879,116590.0,116580.0,0.17265601]
[1758081984821,0.39198868,116590.0,116580.0,0.17265601]
[1758081985024,0.67654879,116590.0,116580.0,0.17265601]
[1758081986482,0.40826879,116590.0,116580.0,0.17265601]
[1758081986693,0.67654879,116590.0,116580.0,0.17461601]
[1758081987362,0.67654879,116590.0,116580.0,0.20132601]
[1758081987578,0.67654879,116590.0,116580.0,0.19827601]
[1758081987787,0.09972868,116590.0,116580.0,0.20132601]
[1758081987932,0.11304411,116590.0,116580.0,0.20132601]
[1758081988552,0.38132411,116590.0,116580.0,0.20132601]
[1758081988749,0.35988145,116590.0,116580.0,0.20132601]
[1758081990599,0.36193145,116590.0,116580.0,0.17461601]
[1758081991348,0.36193145,116590.0,116580.0,0.19957601]
[1758081991552,0.36193145,116590.0,116580.0,0.17461601]
[1758081992000,0.09160145,116590.0,116580.0,0.51121612]
[1758081993946,0.09160145,116590.0,116580.0,0.54963491]
[1758081996235,0.09150145,116590.0,116580.0,0.54963491]
[1758081996640,0.09150145,116590.0,116580.0,0.5754052]
[1758081998694,0.09150145,116590.0,116580.0,0.2284463]
[1758081998901,0.09150145,116590.0,116580.0,0.64879794]
[1758081999390,0.09150145,116590.0,116580.0,0.99575684]
[1758082000073,0.09150145,116590.0,116580.0,1.26399684]
[1758082000307,0.09150145,116590.0,116580.0,0.91703794]
[1758082002075,0.09150145,116590.0,116580.0,1.26399684]
[1758082002724,0.09150145,116590.0,116580.0,0.27687904]
[1758082002924,0.09150145,116590.0,116580.0,0.91703794]
[1758082003231,0.09355145,116590.0,116580.0,0.54201904]
[1758082003684,0.09355145,116590.0,116580.0,0.91393794]
[1758082003903,0.09355145,116590.0,116580.0,0.91703794]
[1758082004040,0.09150145,116590.0,116580.0,0.91703794]
[1758082004257,0.09150145,116590.0,116580.0,0.57007904]
[1758082004454,0.09150145,116590.0,116580.0,0.91703794]
[1758082005360,0.09150145,116590.0,116580.0,1.26399684]
[1758082005594,0.09150145,116590.0,116580.0,0.91703794]
[1758082006661,0.09150145,116590.0,116580.0,1.26399684]
[1758082006840,0.09150145,116590.0,116580.0,0.91703794]
[1758082007253,0.09150145,116590.0,116580.0,1.26399684]
[1758082008363,0.005,116590.0,116580.0,1.26399684]
[1758082008575,0.005,116590.0,116580.0,0.99575684]
[1758082008776,0.005,116590.0,116580.0,1.26399684]
[1758082009214,0.004,116590.0,116580.0,1.26399684]
[1758082010204,0.00014,116610.0,116600.0,0.17152658]
[1758082010408,0.08678251,116610.0,116600.0,0.44048957]
[1758082010603,0.08678251,116610.0,116600.0,0.81686548]
[1758082010844,0.08678251,116610.0,116600.0,0.81696548]
[1758082011520,0.08678251,116610.0,116600.0,0.79200548]
[1758082011723,0.09078251,116610.0,116600.0,0.81796548]
[1758082012433,0.09078251,116610.0,116600.0,0.54976548]
[1758082012626,0.09078251,116610.0,116600.0,0.81796548]
[1758082013065,0.09078251,116610.0,116600.0,0.54976548]
[1758082013291,0.09078251,116610.0,116600.0,0.81796548]
[1758082013733,0.09078251,116610.0,116600.0,0.54976548]
[1758082013925,0.09078251,116610.0,116600.0,0.81796548]
[1758082014795,0.09178251,116610.0,116600.0,0.81796548]
[1758082015815,0.09178251,116610.0,116600.0,0.82655466]
[1758082016471,0.09178251,116610.0,116600.0,0.58412215]
[1758082016723,0.09178251,116610.0,116600.0,0.85232215]
[1758082017078,0.09178251,116610.0,116600.0,0.58412215]
[1758082017289,0.09178251,116610.0,116600.0,0.85232215]
[1758082018532,0.09178251,116610.0,116600.0,0.50536325]
[1758082018774,0.09178251,116610.0,116600.0,0.85228215]
[1758082019137,0.09380251,116610.0,116600.0,0.82422215]
[1758082019376,0.11822251,116610.0,116600.0,0.82210215]
[1758082019856,0.09380251,116610.0,116600.0,0.82409215]
[1758082020052,0.09380251,116610.0,116600.0,0.84732215]
[1758082020289,0.09380251,116610.0,116600.0,0.50036325]
[1758082020431,0.09380251,116610.0,116600.0,0.84732215]
[1758082020794,0.09178251,116610.0,116600.0,0.85025215]
[1758082024678,0.09178251,116610.0,116600.0,0.58209215]
[1758082024885,0.09178251,116610.0,116600.0,0.85025215]
[1758082029680,0.09178251,116610.0,116600.0,0.58209215]
[1758082029927,0.09178251,116610.0,116600.0,0.85021215]
[1758082030266,0.09178251,116610.0,116600.0,0.58209215]
[1758082030471,0.09178251,116610.0,116600.0,0.85021215]
[1758082030673,0.09178251,116610.0,116600.0,0.23513325]
[1758082030929,0.09380251,116610.0,116600.0,0.57916215]
[1758082031125,0.09380251,116610.0,116600.0,0.82405215]
[1758082031295,0.11822251,116610.0,116600.0,0.82405215]
[1758082032344,0.09380251,116610.0,116600.0,0.82405215]
[1758082032572,0.09380251,116610.0,116600.0,0.84728215]
[1758082032748,0.26531438,116610.0,116600.0,0.47709325]
[1758082033101,0.28973438,116610.0,116600.0,0.82405215]
[1758082034119,0.11822251,116610.0,116600.0,0.82405215]
[1758082034466,0.09380251,116610.0,116600.0,0.82405215]
[1758082034679,0.09380251,116610.0,116600.0,0.85021215]
[1758082038024,0.09178251,116610.0,116600.0,0.85021215]
[1758082044072,0.09178251,116610.0,116600.0,0.50325325]
[1758082044241,0.09178251,116610.0,116600.0,0.85021215]
[1758082044448,0.09178251,116610.0,116600.0,0.50325325]
[1758082044764,0.09178251,116610.0,116600.0,0.85021215]
[1758082049276,0.09178251,116610.0,116600.0,0.85017215]
[1758082050262,0.09178251,116610.0,116600.0,0.50321325]
[1758082050892,0.09178251,116610.0,116600.0,0.85017215]
[1758082051128,0.09178251,116610.0,116600.0,0.23513325]
[1758082051311,0.09178251,116610.0,116600.0,0.50321325]
[1758082051459,0.09178251,116610.0,116600.0,0.85017215]
[1758082052313,0.09178251,116610.0,116600.0,0.9369536]
[1758082052935,0.09178251,116610.0,116600.0,0.5899947]
[1758082053355,0.09178251,116610.0,116600.0,0.9369536]
[1758082053872,0.09178251,116610.0,116600.0,0.9372336]
[1758082055272,0.09178251,116610.0,116600.0,0.5902747]
[1758082055494,0.09178251,116610.0,116600.0,0.9372736]
[1758082055950,0.09178251,116610.0,116600.0,0.5903147]
[1758082059033,0.09178251,116610.0,116600.0,0.3216347]
[1758082059248,0.09178251,116610.0,116600.0,0.5902347]
[1758082059625,0.09178251,116610.0,116600.0,0.3216347]
[1758082059841,0.09389251,116610.0,116600.0,0.5902347]
[1758082060043,0.09389251,116610.0,116600.0,0.5873047]
[1758082060247,0.09389251,116610.0,116600.0,0.5905147]
[1758082060673,0.09178251,116610.0,116600.0,0.5905147]
[1758082063220,0.09178251,116610.0,116600.0,0.50401325]
[1758082064563,0.09178251,116610.0,116600.0,0.81231952]
[1758082067686,0.09178251,116610.0,116600.0,0.54371952]
[1758082067921,0.09178251,116610.0,116600.0,0.81255952]
[1758082068806,0.09178251,116610.0,116600.0,0.23541325]
[1758082069027,0.09178251,116610.0,116600.0,0.81255952]
[1758082070244,0.09178251,116610.0,116600.0,0.50425325]
[1758082070458,0.09178251,116610.0,116600.0,0.81255952]
[1758082070907,0.09178251,116610.0,116600.0,0.50425325]
[1758082071141,0.09178251,116610.0,116600.0,0.89906097]
[1758082075328,0.09178251,116610.0,116600.0,0.5907547]
[1758082075527,0.09178251,116610.0,116600.0,0.89906097]
[1758082076644,0.09178251,116610.0,116600.0,0.63022097]
[1758082076809,0.09178251,116610.0,116600.0,0.89894097]
[1758082079197,0.09178251,116610.0,116600.0,0.63022097]
[1758082079341,0.09178251,116610.0,116600.0,0.89890097]
[1758082080099,0.09178251,116610.0,116600.0,0.63022097]
[1758082080298,0.09178251,116610.0,116600.0,0.81231952]
[1758082081680,0.09178251,116610.0,116600.0,0.50401325]
[1758082081884,0.09178251,116610.0,116600.0,0.81231952]
[1758082083246,0.09178251,116610.0,116600.0,0.50401325]
[1758082083459,0.09385251,116610.0,116600.0,0.50393325]
[1758082083663,0.09385251,116610.0,116600.0,0.81223952]
[1758082084609,0.09385251,116610.0,116600.0,0.50393325]
[1758082084770,0.09385251,116610.0,116600.0,0.81223952]
[1758082085532,0.09178251,116610.0,116600.0,0.81223952]
[1758082085931,0.09178251,116610.0,116600.0,0.50393325]
[1758082086133,0.09178251,116610.0,116600.0,0.81223952]
[1758082087114,0.26329438,116610.0,116600.0,0.81223952]
[1758082087558,0.26536438,116610.0,116600.0,0.50393325]
[1758082087757,0.26536438,116610.0,116600.0,0.80902952]
[1758082087964,0.26536438,116610.0,116600.0,0.81224952]
[1758082088298,0.26536438,116610.0,116600.0,0.03545667]
[1758082088540,0.26536438,116610.0,116600.0,0.02686749]
[1758082088541,1.2847849,116610.0,116600.0,0.02686749]
[1758082088756,1.32879642,116610.0,116600.0,0.0011]
[1758082088938,1.32879642,116610.0,116600.0,0.001]
[1758082089146,1.3545669,116610.0,116600.0,0.001]
[1758082089344,1.43455718,116610.0,116600.0,0.001]
[1758082090502,1.16603718,116610.0,116600.0,0.001]
[1758082090682,1.43455718,116610.0,116600.0,0.001]
[1758082091321,1.16603718,116610.0,116600.0,0.001]
[1758082091522,1.41257526,116610.0,116600.0,0.001]
[1758082094966,1.14409526,116610.0,116600.0,0.001]
[1758082095370,1.41245526,116610.0,116600.0,0.001]
[1758082096175,1.14409526,116610.0,116600.0,0.001]
[1758082096386,1.41245526,116610.0,116600.0,0.001]
[1758082099343,1.41242182,116610.0,116600.0,0.001]
[1758082100123,1.51815483,116610.0,116600.0,0.001]
[1758082100802,1.8264611,116610.0,116600.0,0.001]
[1758082101234,1.51815483,116610.0,116600.0,0.001]
[1758082102520,1.24979483,116610.0,116600.0,0.001]
[1758082102724,1.51827483,116610.0,116600.0,0.001]
[1758082103036,1.52692926,116610.0,116600.0,0.001]
[1758082104022,1.25844926,116610.0,116600.0,0.001]
[1758082104180,1.25843294,116610.0,116600.0,0.001]
[1758082104384,1.52687294,116610.0,116600.0,0.001]
[1758082104995,1.52687351,116610.0,116600.0,0.001]
[1758082107382,1.83517978,116610.0,116600.0,0.001]
[1758082108135,1.52687351,116610.0,116600.0,0.001]
[1758082108421,0.17155601,116580.0,116570.0,0.0001]
[1758082108629,0.85646823,116580.0,116570.0,0.0001]
[1758082108833,0.86055373,116580.0,116570.0,0.0001]
[1758082109244,0.8863295,116580.0,116570.0,0.0001]
[1758082109926,0.6187695,116580.0,116570.0,0.0011]
[1758082110119,0.8873295,116580.0,116570.0,0.0011]
[1758082110594,0.6187695,116580.0,116570.0,0.0011]
[1758082110797,0.8872895,116580.0,116570.0,0.0011]
[1758082111234,0.57898323,116580.0,116570.0,0.0011]
[1758082111915,0.57902323,116580.0,116570.0,0.00317]
[1758082113174,0.59501105,116580.0,116570.0,0.00317]
[1758082113647,0.57148105,116580.0,116570.0,0.00317]
[1758082114243,0.30292105,116580.0,116570.0,0.00317]
[1758082114463,0.57140105,116580.0,116570.0,0.00317]
[1758082115889,0.91849414,116580.0,116570.0,0.00317]
[1758082116119,0.91849414,116580.0,116570.0,0.0011]
[1758082116333,0.94802229,116580.0,116570.0,0.0011]
[1758082116513,0.92449955,116580.0,116570.0,0.00317]
[1758082116714,0.92241955,116580.0,116570.0,0.03063]
[1758082119480,0.65401955,116580.0,116570.0,0.03063]
[1758082119746,0.92241955,116580.0,116570.0,0.03063]
[1758082120199,0.57528646,116580.0,116570.0,0.03063]
[1758082121118,0.54951069,116580.0,116570.0,0.03063]
[1758082124509,0.28115069,116580.0,116570.0,0.03063]
[1758082124715,0.54951069,116580.0,116570.0,0.03063]
[1758082125376,0.54951906,116580.0,116570.0,0.03063]
[1758082125591,0.28115906,116580.0,116570.0,0.37772309]
[1758082125789,0.54947906,116580.0,116570.0,0.37772309]
[1758082127925,0.54947906,116580.0,116570.0,0.03063]
[1758082128125,0.54947906,116580.0,116570.0,0.37772309]
[1758082131510,0.55441906,116580.0,116570.0,0.0011]
[1758082131700,0.57794906,116580.0,116570.0,0.34819309]
[1758082132035,0.57795872,116580.0,116570.0,0.34819309]
[1758082132241,0.66446017,116580.0,116570.0,0.34819309]
[1758082133563,0.66152017,116580.0,116570.0,0.34819309]
[1758082140576,0.66152073,116580.0,116570.0,0.34819309]
[1758082141955,0.17158544,116560.0,116550.0,0.0001]
[1758082142176,0.17158544,116560.0,116540.0,0.0001]
[1758082142177,0.54175207,116550.0,116540.0,0.0001]
[1758082142372,0.20176679,116540.0,116530.0,0.0001]
[1758082142686,0.20176679,116540.0,116530.0,0.34719309]
[1758082142687,0.55650824,116540.0,116530.0,0.34719309]
[1758082142905,0.55856824,116540.0,116530.0,0.34719309]
[1758082143098,0.63396716,116540.0,116530.0,0.00014701]
[1758082143330,0.60721716,116540.0,116530.0,0.3493801]
[1758082143533,0.2802506,116540.0,116530.0,0.3773901]
[1758082143742,0.5484906,116540.0,116530.0,0.3773901]
[1758082143898,0.54248127,116540.0,116530.0,0.3773901]
[1758082144103,0.54648127,116540.0,116530.0,0.3783901]
[1758082144306,0.54648199,116540.0,116530.0,0.3783901]
[1758082144502,0.52645634,116540.0,116530.0,0.3773901]
[1758082144778,0.54448199,116540.0,116530.0,0.3783901]
[1758082145008,0.54648199,116540.0,116530.0,0.3783901]
[1758082145204,0.53045634,116540.0,116530.0,0.3783901]
[1758082145446,0.52845634,116540.0,116530.0,0.3783901]
[1758082145866,0.52945634,116540.0,116530.0,0.3783901]
[1758082148485,0.61595779,116540.0,116530.0,0.3783901]
[1758082149312,0.61791779,116540.0,116530.0,0.3783901]
[1758082149732,0.63389842,116540.0,116530.0,0.3783901]
[1758082151534,0.71389842,116540.0,116530.0,0.3783901]
[1758082151665,0.71193842,116540.0,116530.0,0.3783901]
[1758082152301,0.71193381,116540.0,116530.0,0.3783901]
[1758082153381,0.71389381,116540.0,116530.0,0.3534101]
[1758082153591,0.71389381,116540.0,116530.0,0.3503801]
[1758082153998,0.71389381,116540.0,116530.0,0.03129701]
[1758082154207,0.71389381,116540.0,116530.0,0.3783901]
[1758082155016,0.71193381,116540.0,116530.0,0.3783901]
[1758082156052,0.71389381,116540.0,116530.0,0.3783901]
[1758082156246,0.71388783,116540.0,116530.0,0.3783901]
[1758082156900,0.62738638,116540.0,116530.0,0.3783901]
[1758082158245,0.62738638,116540.0,116530.0,0.3753601]
[1758082158659,0.62738638,116540.0,116530.0,0.3503801]
[1758082158914,0.65217638,116540.0,116530.0,0.3503801]
[1758082159411,0.65518638,116540.0,116530.0,0.3482401]
[1758082159662,0.71388783,116540.0,116530.0,0.3503801]
[1758082159884,0.71388783,116540.0,116530.0,0.3753601]
[1758082161762,0.71388783,116540.0,116530.0,0.3503801]
[1758082162294,0.71388783,116540.0,116530.0,0.3534101]